bitfinex-derivatives/quotes_SOLF0:USTF0_20250714
["timestamp","ask_amount","ask_price","bid_price","bid_amount"]
[1752461130672,9.6065,164.79,164.76,3.35]
[1752461130874,9.6067,164.78,164.76,3.35]
[1752461131180,3.54,164.78,164.76,3.35]
[1752461131974,3.54,164.81,164.76,3.35]
[1752461132169,3.54,164.8,164.76,3.35]
[1752461132371,3.54,164.81,164.76,3.35]
[1752461133275,3.54,164.78,164.76,3.35]
[1752461133682,6.0663,164.79,164.76,3.35]
[1752461133880,9.6063,164.79,164.76,3.35]
[1752461134784,3.54,164.79,164.76,3.35]
[1752461135278,3.54,164.79,164.76,9.4173]
[1752461135479,6.0661,164.8,164.77,3.35]
[1752461135785,3.54,164.8,164.77,3.35]
[1752461135980,6.0657,164.81,164.77,3.35]
[1752461136374,3.54,164.8,164.77,3.35]
[1752461136779,3.54,164.8,164.77,6.0668]
[1752461136984,3.54,164.8,164.78,3.35]
[1752461137287,3.54,164.82,164.78,3.35]
[1752461137480,3.54,164.81,164.78,3.35]
[1752461138480,3.54,164.81,164.78,6.0666]
[1752461138686,3.54,164.81,164.79,3.35]
[1752461139180,3.54,164.79,164.78,3.35]
[1752461141290,6.066,164.8,164.78,3.35]
[1752461141487,3.54,164.81,164.78,3.35]
[1752461141686,3.54,164.8,164.78,3.35]
[1752461143181,3.54,164.81,164.78,3.35]
[1752461144488,9.6057,164.81,164.78,3.35]
[1752461146189,3.54,164.81,164.78,3.35]
[1752461146397,3.54,164.83,164.78,3.35]
[1752461146699,9.6058,164.81,164.78,3.35]
[1752461147393,186.28711662,164.84,164.78,3.35]
[1752461147394,6.0653,164.82,164.78,3.35]
[1752461147593,9.6053,164.82,164.78,3.35]
[1752461147902,6.0653,164.82,164.78,3.35]
[1752461148196,9.6049,164.83,164.79,3.35]
[1752461148595,3.54,164.82,164.79,3.35]
[1752461149098,3.54,164.81,164.79,3.35]
[1752461150390,2.92711662,164.83,164.76,8.99451662]
[1752461150591,3.54,164.8,164.76,8.99451662]
[1752461150790,7.98466202,164.83,164.76,8.99451662]
[1752461150991,5.0575454,164.82,164.77,3.35]
[1752461151297,3.54,164.8,164.77,3.35]
[1752461152997,9.6059,164.8,164.77,3.35]
[1752461153996,5.09216078,164.81,164.75,3.35]
[1752461154203,8.63216078,164.8,164.75,3.35]
[1752461154503,3.54,164.79,164.75,3.35]
[1752461154703,3.54,164.79,164.76,3.35]
[1752461155198,3.54,164.81,164.76,3.35]
[1752461155598,9.6058,164.81,164.77,6.0669]
[1752461155799,3.54,164.8,164.78,3.35]
[1752461156794,9.606,164.8,164.78,3.35]
[1752461156998,3.54,164.79,164.75,2.92711662]
[1752461157502,3.54,164.82,164.76,3.35]
[1752461157698,532.4592774,164.85,164.78,3.35]
[1752461157904,6.0651,164.83,164.78,3.35]
[1752461158096,3.54,164.83,164.78,3.35]
[1752461159300,3.54,164.83,164.79,3.35]
[1752461159501,3.54,164.82,164.79,3.35]
[1752461160800,3.46,164.83,164.79,3.35]
[1752461161199,3.46,164.83,164.79,6.0661]
[1752461161393,3.46,164.82,164.8,3.57]
[1752461161996,9.5255,164.82,164.81,3.57]
[1752461162201,8.0192774,164.86,164.82,3.57]
[1752461162607,6.0641,164.85,164.82,3.57]
[1752461163110,3.46,164.85,164.82,9.6351]
[1752461163302,3.46,164.85,164.83,3.57]
[1752461163502,3.46,164.85,164.84,3.57]
[1752461164810,9.5241,164.85,164.84,3.57]
[1752461165412,6.0641,164.85,164.8,8.99291662]
[1752461165620,3.46,164.83,164.81,3.57]
[1752461168711,9.5249,164.83,164.81,3.57]
[1752461169511,3.46,164.83,164.81,3.57]
[1752461170512,9.5249,164.83,164.81,3.57]
[1752461170811,3.46,164.83,164.81,3.57]
[1752461171309,3.46,164.86,164.81,3.57]
[1752461172021,9.524,164.86,164.81,9.6353]
[1752461172218,9.524,164.86,164.82,3.57]
[1752461172514,5.09216078,164.87,164.83,3.57]
[1752461172515,14.61576078,164.87,164.83,3.57]
[1752461172815,3.46,164.86,164.83,3.57]
[1752461174208,3.46,164.86,164.83,6.0648]
[1752461174408,3.46,164.86,164.84,3.57]
[1752461175715,8.55216078,164.87,164.84,3.57]
[1752461175908,11.15526078,164.88,164.84,3.57]
[1752461176112,3.46,164.86,164.84,3.57]
[1752461176510,8.55216078,164.88,164.84,2.92711662]
[1752461176712,3.46,164.88,164.85,3.57]
[1752461176918,9.69112538,164.92,164.89,6.0625]
[1752461176919,8.55216078,164.92,164.89,6.0625]
[1752461177208,3.46,164.91,164.87,2.92711662]
[1752461177416,3.46,164.94,164.89,2.92711662]
[1752461177614,5.09216078,164.96,164.92,3.57]
[1752461177816,3.46,164.98,164.92,3.57]
[1752461178014,3.46,164.96,164.94,3.57]
[1752461178212,5.09216078,165.0,164.94,3.57]
[1752461178409,3.46,165.01,164.96,3.57]
[1752461178615,8.55216078,165.05,164.98,3.57]
[1752461178915,11.3439351,165.06,165.0,2.90814103]
[1752461179122,5.09216078,165.08,165.04,3.57]
[1752461179315,3.46,165.15,165.07,2.9074074]
[1752461179611,3.46,165.11,165.07,3.57]
[1752461179815,3.46,165.17,165.07,3.57]
[1752461180117,3.46,165.17,164.97,524.04]
[1752461180118,3.46,165.19,165.09,3.57]
[1752461180314,3.46,165.19,165.13,3.57]
[1752461180619,3.46,165.21,165.15,3.57]
[1752461180918,3.46,165.23,165.16,3.57]
[1752461181125,8.55216078,165.28,165.22,3.57]
[1752461181421,3.46,165.26,165.13,3.57]
[1752461181811,2.90288179,165.29,165.2,2.90288179]
[1752461182014,3.46,165.3,165.21,3.57]
[1752461182210,3.46,165.28,165.21,3.57]
[1752461182513,3.46,165.21,165.09,3.57]
[1752461182711,3.46,165.21,165.05,3.57]
[1752461182712,6.36311699,165.11,165.05,3.57]
[1752461182919,2.90311699,165.07,165.01,3.57]
[1752461183115,6.0575,165.04,164.98,3.57]
[1752461183311,3.46,165.06,164.99,2.90311699]
[1752461183511,3.46,165.06,165.0,3.57]
[1752461183915,3.46,165.05,165.0,3.57]
[1752461184119,2.90311699,165.04,165.0,3.57]
[1752461184318,3.46,165.06,165.0,2.90311699]
[1752461184617,2.90311699,165.05,165.0,3.57]
[1752461184916,4.8485424,165.05,165.0,3.57]
[1752461185116,3.46,165.03,165.0,3.57]
[1752461185322,4.8485424,165.03,164.96,3.57]
[1752461185524,4.8485424,165.01,164.92,4.8485424]
[1752461185818,3.46,165.0,164.92,4.8485424]
[1752461186016,3.46,165.0,164.93,3.57]
[1752461186212,8.3085424,164.99,164.93,3.57]
[1752461186422,9.5193,164.99,164.93,3.57]
[1752461186622,3.46,164.99,164.93,3.57]
[1752461187417,3.46,164.99,164.93,8.4185424]
[1752461187616,3.46,164.99,164.93,10.9096424]
[1752461187815,3.46,164.99,164.96,3.57]
[1752461188014,3.46,164.98,164.96,3.57]
[1752461188421,3.46,164.98,164.87,3.57]
[1752461188614,3.46,164.98,164.92,4.8485424]
[1752461189021,9.5193,164.98,164.95,3.57]
[1752461189413,9.5193,164.98,164.82,523.56]
[1752461189414,3.46,165.02,164.96,4.8485424]
[1752461189612,3.46,165.05,164.97,3.57]
[1752461189813,3.46,165.05,165.02,4.8485424]
[1752461190018,3.46,165.1,165.05,3.57]
[1752461190215,185.96,165.19,165.09,3.57]
[1752461190419,3.36,165.18,165.1,8.3585424]
[1752461190619,3.36,165.15,165.06,4.8485424]
[1752461190925,3.36,165.07,165.0,3.51]
[1752461191123,6.057,165.05,165.0,3.51]
[1752461191424,3.36,165.03,165.0,3.51]
[1752461191619,3.36,165.03,164.98,4.8485424]
[1752461191821,3.36,165.03,165.0,3.51]
[1752461192027,3.36,165.03,165.01,3.51]
[1752461192317,182.48,165.1,165.03,3.51]
[1752461192523,3.36,165.09,165.03,3.51]
[1752461192718,182.48,165.1,165.04,4.8485424]
[1752461193018,3.36,165.07,165.04,8.3585424]
[1752461193224,3.36,165.14,165.06,4.8485424]
[1752461193412,3.36,165.12,165.06,4.8485424]
[1752461193622,3.36,165.13,165.1,4.8485424]
[1752461193818,3.36,165.14,165.11,3.51]
[1752461194120,3.36,165.18,165.14,3.51]
[1752461194326,3.36,165.18,165.16,3.51]
[1752461194626,6.0509,165.21,165.17,4.8485424]
[1752461194821,9.4109,165.21,165.18,3.51]
[1752461195022,3.36,165.19,165.16,8.08297534]
[1752461195224,3.36,165.19,165.17,3.51]
[1752461195624,3.36,165.21,165.17,3.51]
[1752461195821,182.44,165.22,165.17,3.51]
[1752461196024,3.36,165.2,165.17,3.51]
[1752461196229,9.4113,165.2,165.18,3.51]
[1752461196724,3.36,165.2,165.18,3.51]
[1752461197122,3.36,165.2,165.16,3.51]
[1752461197325,3.36,165.2,165.17,3.51]
[1752461197520,6.052,165.19,165.17,3.51]
[1752461197725,705.92,165.24,165.02,523.5]
[1752461197922,3.36,165.23,165.13,3.51]
[1752461198525,3.36,165.21,165.13,3.51]
[1752461198726,3.36,165.15,165.13,3.51]
[1752461200226,3.36,165.14,165.11,3.51]
[1752461200418,3.36,165.13,165.11,3.51]
[1752461200730,3.36,165.14,165.12,3.51]
[1752461201328,3.36,165.23,165.13,11.59541908]
[1752461201526,3.36,165.21,165.14,3.51]
[1752461202028,3.36,165.16,165.14,3.51]
[1752461202428,6.0526,165.17,165.13,3.51]
[1752461202626,6.052,165.18,165.13,3.51]
[1752461202826,182.32,165.22,165.13,3.51]
[1752461203023,3.36,165.19,165.11,3.51]
[1752461203229,6.0527,165.17,165.11,3.51]
[1752461203539,3.36,165.15,165.12,3.51]
[1752461203826,3.36,165.2,165.12,3.51]
[1752461204626,3.36,165.15,165.12,3.51]
[1752461205125,185.64,165.21,165.11,3.51]
[1752461205325,3.36,165.2,165.11,3.51]
[1752461205830,6.0524,165.17,165.11,6.0542]
[1752461206027,3.36,165.18,165.11,3.51]
[1752461207426,3.36,165.15,165.09,3.51]
[1752461208431,9.4131,165.15,165.09,3.51]
[1752461208926,4.98068764,165.28,165.08,8.09026534]
[1752461208927,182.26,165.18,165.08,8.09026534]
[1752461209130,182.26,165.18,165.11,3.51]
[1752461209131,3.36,165.17,165.11,3.51]
[1752461210524,3.36,165.15,165.13,3.51]
[1752461210726,3.36,165.17,165.11,3.51]
[1752461210932,3.36,165.17,165.14,3.51]
[1752461211132,3.36,165.2,165.14,3.51]
[1752461212328,3.36,165.21,165.14,3.51]
[1752461213533,3.36,165.19,165.14,9.5634]
[1752461213728,3.36,165.17,165.15,3.51]
[1752461214237,3.36,165.17,165.16,3.51]
[1752461214630,523.14,165.23,165.16,8.08605802]
[1752461214838,3.36,165.21,165.19,3.51]
[1752461215535,3.36,165.29,165.2,3.51]
[1752461215833,3.36,165.29,165.21,3.51]
[1752461216032,3.36,165.25,165.21,9.5608]
[1752461216338,3.36,165.23,165.21,3.51]
[1752461216931,3.36,165.23,165.22,3.51]
[1752461218333,6.0495,165.25,165.22,3.51]
[1752461218528,3.36,165.24,165.22,3.51]
[1752461218937,6.0492,165.26,165.21,6.0508]
[1752461219145,9.4092,165.26,165.23,3.51]
[1752461219439,3.36,165.26,165.23,3.51]
[1752461219640,182.22,165.33,165.25,3.51]
[1752461219641,3.36,165.33,165.25,3.51]
[1752461219837,3.36,165.32,165.26,4.83596349]
[1752461220034,6.0482,165.29,165.26,4.83596349]
[1752461220338,3.36,165.32,165.24,3.51]
[1752461220539,8.22596349,165.32,165.23,4.83596349]
[1752461220735,3.39,165.29,165.2,3.54]
[1752461221035,6.05,165.24,165.2,4.83596349]
[1752461221243,6.05,165.24,165.21,3.54]
[1752461221244,3.39,165.23,165.21,3.54]
[1752461221632,3.39,165.29,165.2,3.54]
[1752461221939,3.39,165.29,165.21,14.42656349]
[1752461222139,6.0489,165.27,165.22,3.54]
[1752461222338,3.39,165.25,165.23,3.54]
[1752461223541,3.39,165.24,165.23,3.54]
[1752461223927,3.39,165.3,165.21,8.37596349]
[1752461224127,8.22596349,165.3,165.21,8.37596349]
[1752461224339,3.39,165.29,165.22,3.54]
[1752461224741,3.39,165.29,165.23,3.54]
[1752461225037,6.0489,165.27,165.23,3.54]
[1752461225239,6.0489,165.27,165.24,3.54]
[1752461225537,3.39,165.26,165.24,3.54]
[1752461225934,9.4392,165.26,165.24,3.54]
[1752461226138,3.39,165.25,165.24,3.54]
[1752461226528,3.39,165.29,165.21,3.54]
[1752461226733,3.39,165.29,165.21,4.83287997]
[1752461226929,191.93331877,165.33,165.23,4.83263113]
[1752461227136,3.39,165.28,165.24,4.83186761]
[1752461227335,3.39,165.33,165.26,3.54]
[1752461227735,6.0486,165.28,165.26,3.54]
[1752461227936,3.39,165.27,165.24,3.54]
[1752461228236,9.4381,165.29,165.23,3.54]
[1752461228438,6.0481,165.29,165.24,4.83186761]
[1752461228640,3.39,165.31,165.24,4.83186761]
[1752461228839,3.39,165.27,165.26,3.54]
[1752461229036,3.39,165.31,165.27,3.54]
[1752461229540,3.39,165.29,165.27,3.54]
[1752461229735,3.39,165.33,165.24,4.83186761]
[1752461229938,6.0473,165.31,165.25,3.54]
[1752461230135,3.39,165.31,165.28,4.83186761]
[1752461230331,528.06068764,165.39,165.29,3.54]
[1752461230537,528.06068764,165.39,165.3,8.37186761]
[1752461230538,3.39,165.38,165.3,8.37186761]
[1752461230841,6.0461,165.34,165.3,8.37186761]
[1752461231038,3.39,165.33,165.3,4.83186761]
[1752461231235,3.39,165.33,165.31,3.54]
[1752461231439,523.08,165.39,165.31,3.54]
[1752461231842,523.08,165.39,165.27,4.83186761]
[1752461232041,3.39,165.34,165.3,3.54]
[1752461232240,529.11339883,165.39,165.31,3.54]
[1752461232241,3.39,165.33,165.31,3.54]
[1752461232435,528.06068764,165.39,165.32,3.54]
[1752461232641,528.06068764,165.39,165.33,3.54]
[1752461232642,3.39,165.36,165.33,3.54]
[1752461232835,3.39,165.35,165.33,3.54]
[1752461233034,3.39,165.35,165.34,3.54]
[1752461233436,523.08,165.39,165.34,3.54]
[1752461233634,3.39,165.37,165.35,3.54]
[1752461234050,6.0443,165.39,165.36,3.54]
[1752461234343,3.39,165.41,165.38,3.54]
[1752461234542,3.39,165.42,165.36,3.54]
[1752461234746,6.0446,165.39,165.35,4.83186761]
[1752461234941,3.39,165.39,165.37,3.54]
[1752461235149,3.39,165.39,165.38,3.54]
[1752461235341,9.4345,165.39,165.38,3.54]
[1752461235947,3.39,165.39,165.38,3.54]
[1752461236150,8.22186761,165.42,165.36,3.54]
[1752461236340,4.83186761,165.38,165.28,4.83186761]
[1752461236544,3.39,165.37,165.29,3.54]
[1752461237051,6.0458,165.35,165.29,9.5879]
[1752461237251,3.39,165.37,165.3,3.54]
[1752461237649,6.0463,165.34,165.3,3.54]
[1752461238354,6.0465,165.33,165.31,3.54]
[1752461238553,6.0465,165.33,165.3,3.54]
[1752461238749,6.0468,165.33,165.29,4.83186761]
[1752461238950,3.39,165.34,165.32,3.54]
[1752461239148,3.39,165.37,165.3,3.54]
[1752461239549,4.98068764,165.41,165.3,3.54]
[1752461239750,3.39,165.4,165.32,3.54]
[1752461240053,3.39,165.37,165.32,3.54]
[1752461240449,9.4353,165.37,165.33,4.83186761]
[1752461240751,186.79186761,165.42,165.34,3.54]
[1752461241057,181.96,165.42,165.36,3.54]
[1752461241255,4.98068764,165.46,165.4,3.54]
[1752461241556,3.39,165.42,165.4,3.54]
[1752461242058,3.39,165.43,165.35,3.54]
[1752461242463,8.22186761,165.43,165.35,3.54]
[1752461242759,3.39,165.4,165.32,3.54]
[1752461242960,3.39,165.38,165.32,3.54]
[1752461243160,6.0464,165.34,165.32,3.54]
[1752461243351,3.39,165.34,165.33,3.54]
[1752461243556,4.83186761,165.34,165.24,3.54]
[1752461243758,3.39,165.33,165.27,3.54]
[1752461244252,3.39,165.33,165.2,4.83186761]
[1752461244558,3.39,165.36,165.29,3.54]
[1752461244756,6.0469,165.32,165.29,3.54]
[1752461244963,3.39,165.36,165.29,3.54]
[1752461245460,3.39,165.36,165.3,4.83186761]
[1752461245654,3.39,165.35,165.3,4.83186761]
[1752461245853,3.39,165.35,165.33,3.54]
[1752461246459,3.39,165.4,165.34,3.54]
[1752461246651,3.39,165.41,165.34,4.83186761]
[1752461246856,3.39,165.4,165.37,3.54]
[1752461247055,3.39,165.4,165.38,3.54]
[1752461247259,3.39,165.42,165.39,3.54]
[1752461247461,3.39,165.41,165.39,3.54]
[1752461248050,3.39,165.41,165.37,6.0449]
[1752461248262,3.39,165.41,165.4,3.54]
[1752461248456,194.03590748,165.47,165.4,3.54]
[1752461248457,6.0431,165.43,165.4,3.54]
[1752461248860,3.39,165.42,165.4,3.54]
[1752461249160,9.4333,165.42,165.4,3.54]
[1752461249460,3.39,165.42,165.4,3.54]
[1752461249960,3.39,165.45,165.38,3.54]
[1752461250264,3.39,165.42,165.38,4.83186761]
[1752461250565,3.41,165.46,165.39,3.5]
[1752461250862,6.0425,165.44,165.39,3.5]
[1752461251058,3.41,165.42,165.4,3.5]
[1752461251558,3.41,165.44,165.39,4.83186761]
[1752461251764,3.41,165.44,165.41,3.5]
[1752461251964,3.41,165.43,165.41,3.5]
[1752461252160,3.41,165.43,165.42,3.5]
[1752461253066,3.41,165.43,165.4,3.5]
[1752461253365,3.41,165.41,165.4,3.5]
[1752461253566,3.41,165.46,165.4,3.5]
[1752461253959,6.0428,165.44,165.4,3.5]
[1752461254259,3.41,165.43,165.39,3.5]
[1752461254464,3.41,165.46,165.39,3.5]
[1752461255855,6.25177432,165.47,165.38,4.83186761]
[1752461255856,6.0425,165.44,165.38,4.83186761]
[1752461256056,3.41,165.43,165.38,4.83186761]
[1752461256261,9.66177432,165.47,165.42,8.33186761]
[1752461256462,6.0426,165.44,165.37,6.045]
[1752461256764,6.25177432,165.47,165.4,4.83186761]
[1752461256961,3.41,165.46,165.42,4.83186761]
[1752461257166,3.41,165.45,165.44,3.5]
[1752461257866,9.66177432,165.47,165.42,4.83186761]
[1752461258064,9.66177432,165.47,165.44,3.5]
[1752461258267,3.41,165.46,165.45,3.5]
[1752461258467,6.25177432,165.47,165.45,3.5]
[1752461258662,9.66177432,165.47,165.46,3.5]
[1752461258872,6.25177432,165.47,165.46,3.5]
[1752461260568,9.66177432,165.47,165.44,8.33186761]
[1752461260768,3.41,165.46,165.45,3.5]
[1752461260967,3.41,165.45,165.44,3.5]
[1752461261672,6.0421,165.45,165.43,3.5]
[1752461261972,6.25177432,165.47,165.45,3.5]
[1752461262366,6.25177432,165.47,165.46,3.5]
[1752461262565,183.1,165.57,165.47,1.83]
[1752461262566,3.41,165.54,165.47,1.83]
[1752461262767,3.41,165.54,165.49,1.83]
[1752461262966,3.41,165.54,165.47,1.83]
[1752461263273,3.41,165.54,165.4,4.83186761]
[1752461263274,3.41,165.54,165.44,1.83]
[1752461263466,3.41,165.53,165.44,4.83186761]
[1752461263666,3.41,165.5,165.42,4.83186761]
[1752461263868,3.41,165.45,165.4,4.83186761]
[1752461264070,183.6,165.5,165.37,1.83]
[1752461264267,3.41,165.46,165.37,6.66186761]
[1752461264475,3.41,165.46,165.37,4.83186761]
[1752461264663,8.24186761,165.46,165.36,6.66186761]
[1752461264872,3.41,165.45,165.34,4.83186761]
[1752461265072,3.41,165.44,165.37,4.82595508]
[1752461265373,3.41,165.38,165.35,1.83]
[1752461265575,3.41,165.42,165.31,1.83]
[1752461265771,3.41,165.42,165.33,4.82686751]
[1752461266067,3.41,165.42,165.2,4.82686751]
[1752461266068,8.23686751,165.4,165.3,4.82686751]
[1752461266269,3.41,165.39,165.3,4.82686751]
[1752461266470,3.41,165.37,165.2,4.82686751]
[1752461266674,3.41,165.37,165.28,4.82686751]
[1752461267677,3.41,165.35,165.27,6.65686751]
[1752461267979,3.41,165.35,165.29,6.65686751]
[1752461268370,3.41,165.35,165.26,6.65686751]
[1752461268570,3.41,165.35,165.18,522.18]
[1752461268571,3.41,165.28,165.21,1.83]
[1752461268776,3.41,165.28,165.24,4.82686751]
[1752461268971,3.41,165.29,165.26,1.83]
[1752461269168,3.41,165.29,165.27,1.83]
[1752461269370,184.78,165.35,165.27,1.83]
[1752461269674,3.41,165.33,165.24,1.83]
[1752461269877,3.41,165.3,165.18,9.906252]
[1752461270071,3.41,165.27,165.15,9.906252]
[1752461270270,3.41,165.25,165.16,6.0527]
[1752461270466,3.41,165.25,165.15,9.906252]
[1752461270678,3.41,165.25,165.16,1.83]
[1752461270875,3.41,165.28,165.21,9.906252]
[1752461271271,190.20638459,165.3,165.16,15.958952]
[1752461271272,3.41,165.24,165.16,15.958952]
[1752461271472,3.41,165.24,165.16,9.906252]
[1752461272375,3.41,165.22,165.16,8.076252]
[1752461272575,185.38,165.27,165.16,8.076252]
[1752461272775,3.41,165.2,165.16,9.906252]
[1752461272976,3.41,165.19,165.14,1.83]
[1752461273172,3.41,165.18,165.12,8.076252]
[1752461273479,3.41,165.24,165.16,8.076252]
[1752461273670,3.41,165.24,165.17,1.83]
[1752461273874,3.41,165.23,165.2,7.8812]
[1752461274069,3.41,165.23,165.2,1.83]
[1752461274275,190.58638459,165.29,165.18,1.83]
[1752461274276,3.41,165.21,165.18,1.83]
[1752461274880,8.076252,165.27,165.15,9.906252]
[1752461275181,3.41,165.23,165.13,9.906252]
[1752461275576,6.0505,165.22,165.14,6.0533]
[1752461275775,3.41,165.21,165.13,9.906252]
[1752461275976,3.41,165.21,165.13,1.83]
[1752461276276,3.41,165.21,165.13,7.8835]
[1752461276578,3.41,165.21,165.11,1.83]
[1752461276579,9.4609,165.21,165.11,1.83]
[1752461276878,8.076252,165.18,165.08,1.83]
[1752461277077,8.076252,165.18,165.06,9.906252]
[1752461277078,3.41,165.17,165.06,9.906252]
[1752461277275,3.41,165.13,165.06,9.906252]
[1752461277470,3.41,165.13,165.06,1.83]
[1752461277678,3.41,165.13,165.04,8.076252]
[1752461277879,3.41,165.13,165.05,1.83]
[1752461278082,3.41,165.12,165.02,1.83]
[1752461278482,3.41,165.12,165.03,6.16328382]
[1752461278672,3.41,165.12,165.04,6.16328382]
[1752461278977,3.41,165.09,165.05,6.16328382]
[1752461279173,8.076252,165.1,165.06,6.16328382]
[1752461279479,708.92,165.13,165.07,6.16328382]
[1752461279776,708.92,165.13,165.08,6.16328382]
[1752461279777,530.896252,165.13,165.08,6.16328382]
[1752461279976,6.0543,165.12,165.09,6.16328382]
[1752461280180,530.896252,165.13,165.1,6.16328382]
[1752461280383,522.82,165.13,165.11,6.16328382]
[1752461280685,8.076252,165.21,165.12,6.16328382]
[1752461280981,8.076252,165.21,165.13,9.60328382]
[1752461281280,3.62,165.2,165.14,5.91906545]
[1752461281480,3.62,165.2,165.15,5.91906545]
[1752461281684,6.0516,165.19,165.16,5.91906545]
[1752461281981,3.62,165.18,165.17,5.91906545]
[1752461282183,9.672,165.18,165.17,5.91906545]
[1752461282376,3.62,165.18,165.1,3.44]
[1752461283089,3.62,165.2,165.13,3.44]
[1752461283286,3.62,165.2,165.14,3.44]
[1752461283885,3.62,165.2,165.15,3.44]
[1752461284187,3.62,165.21,165.18,3.44]
[1752461284387,522.82,165.22,165.18,3.44]
[1752461284586,3.62,165.19,165.16,3.44]
[1752461284784,3.62,165.18,165.13,8.076252]
[1752461285088,3.62,165.21,165.14,3.44]
[1752461285993,3.62,165.19,165.14,3.44]
[1752461286176,3.62,165.18,165.15,3.44]
[1752461286379,3.62,165.17,165.15,3.44]
[1752461286786,3.62,165.19,165.08,3.44]
[1752461286987,9.6717,165.19,165.11,9.4943]
[1752461287285,3.62,165.19,165.11,3.44]
[1752461288184,3.62,165.19,165.12,3.44]
[1752461288585,3.62,165.21,165.09,3.44]
[1752461288792,3.62,165.19,165.09,3.44]
[1752461288994,6.0521,165.18,165.11,6.0543]
[1752461289189,3.62,165.16,165.09,3.44]
[1752461289393,3.62,165.18,165.11,8.076252]
[1752461289589,3.62,165.18,165.12,9.4942]
[1752461289983,3.62,165.18,165.12,3.44]
[1752461291284,3.62,165.18,165.12,11.516252]
[1752461291691,3.62,165.2,165.12,3.44]
[1752461292088,3.62,165.17,165.07,3.44]
[1752461292395,3.62,165.13,165.07,3.44]
[1752461292804,3.62,165.11,165.08,3.44]
[1752461293093,3.62,165.15,165.09,3.44]
[1752461293793,3.62,165.14,165.12,3.44]
[1752461293991,3.62,165.16,165.1,3.44]
[1752461294193,6.052,165.18,165.12,6.0539]
[1752461294396,3.62,165.19,165.12,3.44]
[1752461294794,3.62,165.16,165.13,3.44]
[1752461294989,3.62,165.15,165.13,3.44]
[1752461295198,3.62,165.19,165.1,3.44]
[1752461295387,522.82,165.22,165.12,8.076252]
[1752461295586,3.62,165.21,165.13,3.44]
[1752461296394,3.62,165.21,165.15,6.0528]
[1752461296695,3.62,165.19,165.16,3.44]
[1752461296999,6.0519,165.19,165.16,3.44]
[1752461297192,3.62,165.18,165.16,3.44]
[1752461298295,522.82,165.22,165.14,3.44]